Workbook

Sheet Calculator împrumut
B2: ÎMPRUMUT DE STUDII | G2: 50000 | L2: 2011-05-10
B3: CALCULATOR
B5: Se sugerează ca returnările lunare totale ale împrumutului de studii să nu depăşească 8% din salariu anual pe primul an.
C7: Plata dvs. lunară combinată curentă este: | F7: =ÎmprumuturiStudii[[#Totals],[Plată lunară curentă]] -> 328.5859073 | I7: Plata dvs. lunară combinată planificată este: | M7: =ÎmprumuturiStudii[[#Totals],[Plată planificată]] -> 328.5859073
C8: Procent din venitul lunar: | F8: =ÎmprumuturiStudii[[#Totals],[Plată lunară curentă]]/SalariuLunarEstimat -> 0.07886061774 | I8: Procent din venitul lunar: | M8: =ÎmprumuturiStudii[[#Totals],[Plată planificată]]/SalariuLunarEstimat -> 0.07886061774
C11: DETALII GENERALE ÎMPRUMUT | G11: DATE RETURNARE ÎMPRUMUT | J11: DETALII PLATĂ
C12: Împrumut nr. | D12: Creditor | E12: Valoare împrumut | F12: Rata anuală a dobânzii | G12: Data de început | H12: Lungime (Ani) | I12: Data de sfârşit | J12: Plată lunară curentă | K12: Dobândă totală | L12: Plată planificată | M12: Plată anuală
C13: 10998M88 | D13: Creditor 1 | E13: 10000 | F13: 0.05 | G13: 2011-04-01 | H13: 10 | I13: =IF(AND(ÎmprumuturiStudii[[#This Row],[Data de început]]>0,ÎmprumuturiStudii[[#This Row],[Lungime (Ani)]]>0),EDATE(ÎmprumuturiStudii[[#This Row],[Data de început]],ÎmprumuturiStudii[[#This Row],[Lungime (Ani)]]*12),"") -> 2021-04-01 | J13: =IF(AND(ÎmprumutStartLAzi,COUNT(ÎmprumuturiStudii[[#This Row],[Valoare împrumut]]:ÎmprumuturiStudii[[#This Row],[Lungime (Ani)]])=4,ÎmprumuturiStudii[[#This Row],[Data de început]]<TODAY()),PMT(ÎmprumuturiStudii[[#This Row],[Rata anuală a dobânzii]]/12,ÎmprumuturiStudii[[#This Row],[Lungime (Ani)]]*12,-ÎmprumuturiStudii[[#This Row],[Valoare împrumut]],0,0),"") -> 106.0655152 | K13: =IFERROR((ÎmprumuturiStudii[[#This Row],[Plată planificată]]*(ÎmprumuturiStudii[[#This Row],[Lungime (Ani)]]*12))-ÎmprumuturiStudii[[#This Row],[Valoare împrumut]],"") -> 2727.861829 | L13: =IF(COUNTA(ÎmprumuturiStudii[[#This Row],[Valoare împrumut]]:ÎmprumuturiStudii[[#This Row],[Lungime (Ani)]])<>4,"",PMT(ÎmprumuturiStudii[[#This Row],[Rata anuală a dobânzii]]/12,ÎmprumuturiStudii[[#This Row],[Lungime (Ani)]]*12,-ÎmprumuturiStudii[[#This Row],[Valoare împrumut]],0,0)) -> 106.0655152 | M13: =IFERROR(ÎmprumuturiStudii[[#This Row],[Plată planificată]]*12,"") -> 1272.786183
C14: 20987N87 | D14: Creditor 2 | E14: 8000 | F14: 0.05 | G14: 2011-05-01 | H14: 10 | I14: =IF(AND(ÎmprumuturiStudii[[#This Row],[Data de început]]>0,ÎmprumuturiStudii[[#This Row],[Lungime (Ani)]]>0),EDATE(ÎmprumuturiStudii[[#This Row],[Data de început]],ÎmprumuturiStudii[[#This Row],[Lungime (Ani)]]*12),"") -> 2021-05-01 | J14: =IF(AND(ÎmprumutStartLAzi,COUNT(ÎmprumuturiStudii[[#This Row],[Valoare împrumut]]:ÎmprumuturiStudii[[#This Row],[Lungime (Ani)]])=4,ÎmprumuturiStudii[[#This Row],[Data de început]]<TODAY()),PMT(ÎmprumuturiStudii[[#This Row],[Rata anuală a dobânzii]]/12,ÎmprumuturiStudii[[#This Row],[Lungime (Ani)]]*12,-ÎmprumuturiStudii[[#This Row],[Valoare împrumut]],0,0),"") -> 84.85241219 | K14: =IFERROR((ÎmprumuturiStudii[[#This Row],[Plată planificată]]*(ÎmprumuturiStudii[[#This Row],[Lungime (Ani)]]*12))-ÎmprumuturiStudii[[#This Row],[Valoare împrumut]],"") -> 2182.289463 | L14: =IF(COUNTA(ÎmprumuturiStudii[[#This Row],[Valoare împrumut]]:ÎmprumuturiStudii[[#This Row],[Lungime (Ani)]])<>4,"",PMT(ÎmprumuturiStudii[[#This Row],[Rata anuală a dobânzii]]/12,ÎmprumuturiStudii[[#This Row],[Lungime (Ani)]]*12,-ÎmprumuturiStudii[[#This Row],[Valoare împrumut]],0,0)) -> 84.85241219 | M14: =IFERROR(ÎmprumuturiStudii[[#This Row],[Plată planificată]]*12,"") -> 1018.228946
C15: 36785LM | D15: Creditor 3 | E15: 6000 | F15: 0.045 | G15: 2012-03-01 | H15: 10 | I15: =IF(AND(ÎmprumuturiStudii[[#This Row],[Data de început]]>0,ÎmprumuturiStudii[[#This Row],[Lungime (Ani)]]>0),EDATE(ÎmprumuturiStudii[[#This Row],[Data de început]],ÎmprumuturiStudii[[#This Row],[Lungime (Ani)]]*12),"") -> 2022-03-01 | J15: =IF(AND(ÎmprumutStartLAzi,COUNT(ÎmprumuturiStudii[[#This Row],[Valoare împrumut]]:ÎmprumuturiStudii[[#This Row],[Lungime (Ani)]])=4,ÎmprumuturiStudii[[#This Row],[Data de început]]<TODAY()),PMT(ÎmprumuturiStudii[[#This Row],[Rata anuală a dobânzii]]/12,ÎmprumuturiStudii[[#This Row],[Lungime (Ani)]]*12,-ÎmprumuturiStudii[[#This Row],[Valoare împrumut]],0,0),"") -> 62.18304525 | K15: =IFERROR((ÎmprumuturiStudii[[#This Row],[Plată planificată]]*(ÎmprumuturiStudii[[#This Row],[Lungime (Ani)]]*12))-ÎmprumuturiStudii[[#This Row],[Valoare împrumut]],"") -> 1461.965431 | L15: =IF(COUNTA(ÎmprumuturiStudii[[#This Row],[Valoare împrumut]]:ÎmprumuturiStudii[[#This Row],[Lungime (Ani)]])<>4,"",PMT(ÎmprumuturiStudii[[#This Row],[Rata anuală a dobânzii]]/12,ÎmprumuturiStudii[[#This Row],[Lungime (Ani)]]*12,-ÎmprumuturiStudii[[#This Row],[Valoare împrumut]],0,0)) -> 62.18304525 | M15: =IFERROR(ÎmprumuturiStudii[[#This Row],[Plată planificată]]*12,"") -> 746.1965431
C16: 765R43 | D16: Creditor 4 | E16: 4000 | F16: 0.05 | G16: 2012-05-01 | H16: 5 | I16: =IF(AND(ÎmprumuturiStudii[[#This Row],[Data de început]]>0,ÎmprumuturiStudii[[#This Row],[Lungime (Ani)]]>0),EDATE(ÎmprumuturiStudii[[#This Row],[Data de început]],ÎmprumuturiStudii[[#This Row],[Lungime (Ani)]]*12),"") -> 2017-05-01 | J16: =IF(AND(ÎmprumutStartLAzi,COUNT(ÎmprumuturiStudii[[#This Row],[Valoare împrumut]]:ÎmprumuturiStudii[[#This Row],[Lungime (Ani)]])=4,ÎmprumuturiStudii[[#This Row],[Data de început]]<TODAY()),PMT(ÎmprumuturiStudii[[#This Row],[Rata anuală a dobânzii]]/12,ÎmprumuturiStudii[[#This Row],[Lungime (Ani)]]*12,-ÎmprumuturiStudii[[#This Row],[Valoare împrumut]],0,0),"") -> 75.48493458 | K16: =IFERROR((ÎmprumuturiStudii[[#This Row],[Plată planificată]]*(ÎmprumuturiStudii[[#This Row],[Lungime (Ani)]]*12))-ÎmprumuturiStudii[[#This Row],[Valoare împrumut]],"") -> 529.0960746 | L16: =IF(COUNTA(ÎmprumuturiStudii[[#This Row],[Valoare împrumut]]:ÎmprumuturiStudii[[#This Row],[Lungime (Ani)]])<>4,"",PMT(ÎmprumuturiStudii[[#This Row],[Rata anuală a dobânzii]]/12,ÎmprumuturiStudii[[#This Row],[Lungime (Ani)]]*12,-ÎmprumuturiStudii[[#This Row],[Valoare împrumut]],0,0)) -> 75.48493458 | M16: =IFERROR(ÎmprumuturiStudii[[#This Row],[Plată planificată]]*12,"") -> 905.8192149
C17: Total | E17: =SUBTOTAL(109,ÎmprumuturiStudii[Valoare împrumut]) -> 28000 | J17: =SUBTOTAL(109,ÎmprumuturiStudii[Plată lunară curentă]) -> 328.5859073 | K17: =SUBTOTAL(109,ÎmprumuturiStudii[Dobândă totală]) -> 6901.212797 | L17: =SUBTOTAL(109,ÎmprumuturiStudii[Plată planificată]) -> 328.5859073 | M17: =SUBTOTAL(109,ÎmprumuturiStudii[Plată anuală]) -> 3943.030887
C18: Medii | E18: =AVERAGE(ÎmprumuturiStudii[Valoare împrumut]) -> 7000 | F18: =AVERAGE(ÎmprumuturiStudii[Rata anuală a dobânzii]) -> 0.04875 | K18: =AVERAGE(ÎmprumuturiStudii[Dobândă totală]) -> 1725.303199 | M18: =AVERAGE(ÎmprumuturiStudii[Plată anuală]) -> 985.7577218
K20: Returnare totală împrumuturi unificate: | M20: =ÎmprumuturiStudii[[#Totals],[Valoare împrumut]]+ÎmprumuturiStudii[[#Totals],[Dobândă totală]] -> 34901.2128
K22: Venit lunar estimat după absolvire: | M22: =(SalariuAnualEstimat/12) -> 4166.666667
